Cogmind - Beta 9.4 --- EXPLORER MODE // 2020.02.09 @ 08:02:15 Player: K.Ioz Result: Destroyed by S-27 Virus with Autogun Performance ------------- Evolutions (5) 2500 Regions Visited (15) 3000 Robots Destroyed (141) 705 Value Destroyed (5144) 5144 Prototype IDs (35) 700 Alien Tech Used (0) 0 Bonus (3030) 3030 TOTAL SCORE: 15079 Bonus ------- High Alert Combat Kills 28 Follower Combat Kills 1002 Aligned with FarCom 300 Met Warlord at Base 500 MAIN.C Attacked Warlord 500 Warlord Defense Kill 730 Friendly Fire -30 Cogmind --------- Core Integrity 0/1000 Matter 300/300 Energy 99/100 System Corruption 0% Temperature Cool (0) Movement Core (50) Location -5/Warlord Parts ------- > --- POWER (2) -------- (None) > --- PROPULSION (4) --- (None) > --- UTILITY (6) ------ (None) > --- WEAPON (6) ------- (None) > --- INVENTORY (4) ---- Improved Treads Heavy Reactive Plating Improved Remote Force Field Peak State ------------ > --- POWER ------------ Light Antimatter Reactor Light Quantum Reactor > --- PROPULSION ------- Medium Treads Medium Treads Heavy Treads > --- UTILITY ---------- Improved Heat Sink Improved Heat Sink Advanced Heat Sink Large Storage Unit Hardened Light Armor Plating Hardened Medium Armor Plating > --- WEAPON ----------- Heavy Laser Heavy Beamcaster Heavy Beamcaster Autogun Heavy Machine Gun Battle Cannon > --- INVENTORY -------- Improved Treads Improved Treads Advanced Kinecellerator Improved Light Armor Plating Heavy Reactive Plating Improved Remote Force Field Relay Coupler [Grunt] Relay Coupler [Sentry] Autogun [Rating: 82] Favorites ----------- Power Improved Deuterium Engine Engine Improved Deuterium Engine Power Core Light Nuclear Core Reactor Antimatter Reactor Propulsion Light Treads Treads Light Treads Hover Unit Improved Linear Gravjet Utility Hardened Medium Armor Plating Device Improved Heat Sink Storage Large Storage Unit Processor Improved Melee Analysis Suite Protection Hardened Medium Armor Plating Weapon Advanced Assault Cannon Energy Gun Plasma Rifle Energy Cannon Ion Cannon Ballistic Gun Battle Rifle Ballistic Cannon Advanced Assault Cannon Build | -11 -10 -10 -9 -9 -9 -8 -8 -7 -7 -7 -6 -5 -5 -5 -5 ------- Run | Scr Mat Min Mat Min Exi Min Mat Fac Was Fac Fac Fac Upp Upp War Slots Evolved 11 | . 1 . 2 . . . 2 2 . . 2 2 . . . Power 1 | . . . . . . . 1 . . . . . . . . Propulsion 2 | . 1 . . . . . . . . . . 1 . . . Utility 4 | . . . 1 . . . . 2 . . 1 . . . . Weapon 4 | . . . 1 . . . 1 . . . 1 1 . . . Parts Attached 119 | 8 1 1 10 . 3 9 19 2 14 11 6 4 3 16 12 Power 16 | 1 . . 1 . 1 1 3 . 1 1 1 . . 3 3 Engine 9 | 1 . . 1 . 1 . 3 . . 1 1 . . 1 . Core 2 | . . . . . . 1 . . . . . . . 1 . Reactor 5 | . . . . . . . . . 1 . . . . 1 3 Propulsion 26 | 2 1 . 3 . . 2 6 . 3 1 1 2 . 3 2 Treads 25 | 2 1 . 3 . . 2 6 . 2 1 1 2 . 3 2 Leg . | . . . . . . . . . . . . . . . . Wheel . | . . . . . . . . . . . . . . . . Hover 1 | . . . . . . . . . 1 . . . . . . Flight . | . . . . . . . . . . . . . . . . Utility 40 | 3 . . 3 . 2 2 1 2 5 6 3 1 2 5 5 Device 17 | 1 . . 1 . . 1 1 1 . 4 2 1 . 1 4 Storage 4 | 1 . . 1 . 1 . . . . 1 . . . . . Processor 1 | . . . . . . . . . . . . . 1 . . Hackware . | . . . . . . . . . . . . . . . . Protection 18 | 1 . . 1 . 1 1 . 1 5 1 1 . 1 4 1 Artifact . | . . . . . . . . . . . . . . . . Weapon 37 | 2 . 1 3 . . 4 9 . 5 3 1 1 1 5 2 Energy Gun 19 | 1 . 1 2 . . 3 5 . 1 1 1 . . 2 2 Energy Cannon 4 | . . . . . . 1 . . . 1 . 1 . 1 . Ballistic Gun 9 | 1 . . 1 . . . 4 . 1 . . . 1 1 . Ballistic Cannon 5 | . . . . . . . . . 3 1 . . . 1 . Launcher . | . . . . . . . . . . . . . . . . Special Weapon . | . . . . . . . . . . . . . . . . Impact Weapon . | . . . . . . . . . . . . . . . . Slashing Weapon . | . . . . . . . . . . . . . . . . Piercing Weapon . | . . . . . . . . . . . . . . . . Special Melee Weapon . | . . . . . . . . . . . . . . . . Unidentified Prototypes 3 | . . . . . . . 1 . 1 . . . . . 1 Parts Lost 41 | . . 1 1 . 4 6 1 . 6 . . . . 7 15 Power 4 | . . . . . 1 . . . . . . . . 1 2 Propulsion 6 | . . . . . . 2 . . 1 . . . . 1 2 Utility 13 | . . . 1 . 1 2 . . 3 . . . . 2 4 Weapon 18 | . . 1 . . 2 2 1 . 2 . . . . 3 7 Highest Loss Streak 14 | . . 1 1 . 2 6 1 . 6 . . . . 2 14 Average Slot Usage (%) 92 | . 99 100 93 100 97 82 94 94 59 91 99 94 93 88 93 Engine 6 | . 12 12 10 10 9 . 12 14 2 5 6 5 5 4 4 Core 1 | . . . . . . 7 2 . . . . . . 2 4 Reactor 2 | . . . . . . . . . 3 7 6 5 5 2 . Treads 21 | . 36 37 29 30 30 20 21 21 11 20 18 16 16 16 21 Device 10 | . 12 12 9 10 10 9 7 14 2 8 18 16 16 13 6 Storage 6 | . 12 12 16 10 10 10 8 7 1 2 6 5 5 5 4 Protection 12 | . . . 3 10 10 8 8 8 18 18 12 11 11 11 19 Energy Gun 10 | . 12 12 14 20 17 16 26 21 2 1 11 11 9 3 7 Energy Cannon 3 | . . . . . . 8 2 . . 6 6 11 11 6 . Ballistic Gun 7 | . 12 12 10 10 10 1 2 7 5 7 6 5 6 8 10 Ballistic Cannon 5 | . . . . . . . . . 11 13 6 5 5 9 9 Naked Turns 159 | . . . . . . . . . 146 . . . . . 13 Heaviest Build 99 | 17 17 17 25 22 32 42 52 68 86 99 85 93 94 95 91 Greatest Support 126 | 40 60 60 60 60 60 60 60 60 60 63 63 116 116 116 126 Greatest Overweight (x) 14 | 1 . . . . . 11 14 1 10 2 1 1 . 2 5 Average Overweight (x) . | . . . . . . . . . . 1 1 . . . . Largest Inventory Capacity 10 | 8 8 8 8 8 10 10 10 10 10 10 10 10 10 10 10 Average Capacity 8 | 7 8 8 8 8 8 10 10 10 4 6 10 10 10 10 9 Most Carried 10 | 6 8 8 8 8 10 7 10 10 10 9 10 10 10 10 10 Average Carried 7 | 3 6 7 7 8 8 3 7 9 3 4 9 9 9 8 7 Final Capacity 10 | 8 8 8 8 8 10 10 10 10 4 10 10 10 10 10 4 Final Carried 10 | 4 8 7 8 8 9 3 10 10 2 9 10 10 9 5 4 Class Distribution -------------------- 37% | Scavenger-Tank 30% | Scavenger-Executioner 12% | Hacker-Mutant 7% | Hacker-Tank 6% | Scavenger-Mutant 5% | Hacker-Executioner Dominant Class ---------------- Hacker-Mutant | -10/Materials Hacker-Mutant | -10/Mines Hacker-Mutant | -9/Materials Scavenger-Tank | -9/Mines Scavenger-Tank | -9/Exiles Scavenger-Mutant | -8/Mines Scavenger-Tank | -8/Materials Scavenger-Tank | -7/Factory Hacker-Tank | -7/Waste Scavenger-Tank | -7/Factory Scavenger-Tank | -6/Factory Scavenger-Executioner | -5/Factory Scavenger-Executioner | -5/Upper Caves Hacker-Executioner | -5/Upper Caves Scavenger-Executioner | -5/Warlord Resources | -11 -10 -10 -9 -9 -9 -8 -8 -7 -7 -7 -6 -5 -5 -5 -5 ----------- Run | Scr Mat Min Mat Min Exi Min Mat Fac Was Fac Fac Fac Upp Upp War Matter Collected 3413 | 241 197 18 282 . 64 88 211 . 160 170 437 138 54 859 494 Remotely . | . . . . . . . . . . . . . . . . Salvage Created 5635 | . 215 47 230 . 81 321 1128 . . 161 1322 349 170 1224 387 Parts 298 | . 14 . 20 . . 14 73 . . 8 72 9 4 72 12 Haulers Intercepted . | . . . . . . . . . . . . . . . . Recyclers Shooed 1 | . . . . . . . . . . . 1 . . . . Parts Field Recycled . | . . . . . . . . . . . . . . . . Retrieved Matter . | . . . . . . . . . . . . . . . . Parts Self-Destructed . | . . . . . . . . . . . . . . . . Prevented . | . . . . . . . . . . . . . . . . Kills | -11 -10 -10 -9 -9 -9 -8 -8 -7 -7 -7 -6 -5 -5 -5 -5 ------- Run | Scr Mat Min Mat Min Exi Min Mat Fac Was Fac Fac Fac Upp Upp War Combat Hostiles Destroyed 117 | . 5 3 6 . 6 5 16 . . 4 25 6 3 30 8 Melee 2 | . . . . . . . . . . . . . . 1 1 Guns 72 | . 4 3 6 . 6 1 15 . . 2 13 2 . 15 5 Cannons 39 | . . . . . . 4 . . . 2 12 4 3 13 1 AOE 3 | . 1 . . . . . 1 . . . . . . 1 . Classes Destroyed 16 | . 3 1 2 . . 1 4 . . . 3 . . 1 1 Worker 5 | . . . . . . . . . . . 5 . . . . Builder 5 | . . . . . . . 3 . . . 2 . . . . Tunneler 1 | . . . . . . . . . . . 1 . . . . Recycler 4 | . . . . . . . 3 . . . 1 . . . . Operator 2 | . . . 1 . . . . . . . . 1 . . . Watcher 7 | . 3 . . . . . 2 . . . 2 . . . . Swarmer 27 | . 2 . 3 . . . 4 . . 1 6 . . 10 1 Saboteur 2 | . . . . . . . . . . . . . . . 2 Grunt 33 | . 3 . . . . 2 2 . . 2 5 3 2 10 4 Brawler 6 | . . . . . . . 1 . . . 2 . . 2 1 Duelist 6 | . . . . . . 2 . . . . 3 . . 1 . Sentry 16 | . . . 3 . . . 5 . . 1 4 1 1 1 . Hunter 8 | . . . . . . . 4 . . . . 2 . 2 . Programmer 6 | . . . . . . . . . . . 5 . . 1 . Master Thief 3 | . . . . . . . . . . . . . . 3 . Assembled 9 | . . 3 . . 6 . . . . . . . . . . Best Kill Streak 10 | . 2 3 3 . 6 3 6 . . 1 10 2 2 10 2 Combat Bots Only 10 | . 2 3 3 . 6 3 3 . . 1 5 2 2 10 2 Max Kills in Single Turn 3 | . 1 1 1 . 1 1 3 . . 1 2 1 1 1 2 Gunslinging . | . . . . . . . . . . . . . . . . Exploded 1 | . 1 . . . . . 1 . . . . . . 1 . Melee 1 | . . . . . . . . . . . . . . 1 1 Uniques/NPCs Destroyed 1 | . . . . . . 1 . . . . . . . . . 1C-UTU (-8/Mines) Combat | -11 -10 -10 -9 -9 -9 -8 -8 -7 -7 -7 -6 -5 -5 -5 -5 -------- Run | Scr Mat Min Mat Min Exi Min Mat Fac Was Fac Fac Fac Upp Upp War Damage Taken 7601 | . 176 250 262 . 620 720 292 . 172 160 335 199 113 1314 2988 Core 1416 | . 29 17 71 . 53 70 30 . 102 . 41 13 . 23 967 Absorbed by Shields 101 | . . . . . . . . . . . . . . . 101 Core Remaining (%) 84 | 100 . 81 . . . 51 94 . . 85 95 . . . . Volleys Fired 241 | . 20 10 18 . 14 14 29 . . 9 39 12 4 59 13 Largest 6 | . 2 2 3 . 3 1 4 . . 4 5 6 6 6 6 Hottest 363 | . 60 60 119 . 119 120 225 . . 213 288 363 363 327 323 Shots Fired 982 | . 40 20 45 . 37 39 100 . . 30 187 72 24 316 72 Gun 630 | . 40 20 45 . 37 31 100 . . 8 109 36 12 135 57 Cannon 352 | . . . . . . 8 . . . 22 78 36 12 181 15 Launcher . | . . . . . . . . . . . . . . . . Special . | . . . . . . . . . . . . . . . . Kinetic 440 | . 20 10 18 . 14 6 7 . . 22 78 24 8 194 39 Thermal 389 | . . 7 27 . 23 33 48 . . 8 109 36 12 53 33 Explosive . | . . . . . . . . . . . . . . . . Electromagnetic 153 | . 20 3 . . . . 45 . . . . 12 4 69 . Robot Hit Streak 71 | . 23 28 13 . 12 19 71 . . 11 43 40 38 39 14 Robot Miss Streak 4 | . 1 1 1 . 1 1 1 . . 1 2 1 3 4 3 Penetration Max . | . . . . . . . . . . . . . . . . Secondary Targets 6 | . . . 2 . 2 . 2 . . . . . . . . Max Gunslinging Chain 1 | . . . 1 . 1 . 1 . . . . . . . . Autonomous 25 | . . . . . . 25 . . . . . . . . . Shots Hit Robots 701 | . 36 17 32 . 27 36 68 . . 18 141 64 21 192 49 Core Hits 297 | . 14 11 12 . 13 10 42 . . 8 78 22 9 61 17 Critical Hits 9 | . . . . . . . 3 . . . 2 . 1 1 2 Critical Kills 5 | . . . . . . . 1 . . . 2 . 1 . 1 Critical Parts Destroyed 4 | . . . . . . . 2 . . . . . . 1 1 Melee Attacks . | . . . . . . . . . . . . . . . . Impact . | . . . . . . . . . . . . . . . . Slashing . | . . . . . . . . . . . . . . . . Piercing . | . . . . . . . . . . . . . . . . Sneak Attacks . | . . . . . . . . . . . . . . . . Combat Hostiles . | . . . . . . . . . . . . . . . . Follow-up Attacks . | . . . . . . . . . . . . . . . . Damage Inflicted 14063 | . 591 158 326 . 399 1091 1583 . . 299 3345 1274 450 3604 943 Guns 8887 | . 442 158 326 . 399 789 1287 . . 109 1837 728 249 1800 763 Cannons 4065 | . . . . . . 284 . . . 190 1036 546 160 1695 154 Explosions 957 | . 149 . . . . . 274 . . . 430 . . 104 . Melee . | . . . . . . . . . . . . . . . . Ramming 154 | . . . . . . 18 22 . . . 42 . 41 5 26 Kinetic 4821 | . 130 50 104 . 160 53 64 . . 171 911 298 170 2252 458 Thermal 6804 | . 149 74 222 . 239 1020 813 . . 128 1962 754 213 771 459 Explosive 430 | . . . . . . . . . . . 430 . . . . Electromagnetic 1854 | . 312 34 . . . . 684 . . . . 222 26 576 . Impact . | . . . . . . . . . . . . . . . . Slashing . | . . . . . . . . . . . . . . . . Piercing . | . . . . . . . . . . . . . . . . Highest Corruption 2 | . 1 1 . . . . . . . . 2 . . 1 1 Average Corruption 1 | . 1 1 . . . . . . . . 1 . . 1 1 Corruption Purged . | . . . . . . . . . . . . . . . . Effects 19 | . 4 2 . . . . . . . . 5 . . 8 . Message Errors 6 | . 1 . . . . . . . . . 3 . . 2 . Energy Discharges 3 | . 2 . . . . . . . . . . . . 1 . Data Loss (minor) 3 | . 1 . . . . . . . . . 1 . . 1 . Targeting Errors 6 | . . 2 . . . . . . . . 1 . . 3 . Weapon Failures 1 | . . . . . . . . . . . . . . 1 . Overload Shots . | . . . . . . . . . . . . . . . . Overflow Damage 323 | . 33 . . . . 10 95 . . . 103 4 . 78 . Projectiles 100 | . . . . . . 10 . . . . 8 4 . 78 . Explosions 219 | . 33 . . . . . 95 . . . 91 . . . . Melee 4 | . . . . . . . . . . . 4 . . . . Knockbacks 23 | . . . . . . . . . . . 1 . . 21 1 Impact . | . . . . . . . . . . . . . . . . Kinetic 22 | . . . . . . . . . . . 1 . . 20 1 Secondary 1 | . . . . . . . . . . . . . . 1 . Self-Inflicted Damage 103 | . 46 . . . . . 57 . . . . . . . . Shots 3 | . 2 . . . . . 1 . . . . . . . . Rammed 13 | . . 1 . . . 1 2 . . . 2 . 5 . 2 Targets Rammed 17 | . . 1 . . . 1 3 . . . 3 . 5 1 3 Kicked . | . . . . . . . . . . . . . . . . Crushed 4 | . . . . . . . 1 . . . 1 . . 1 1 Highest Temperature 414 | . 109 43 81 . 215 156 205 . 16 242 108 245 13 312 414 Average Temperature 69 | . 35 19 25 . 76 68 64 . 9 92 41 76 4 82 138 Received Heat Transfer 1645 | . 81 80 81 . 140 54 54 . . 129 93 81 54 414 384 Effects 5 | . . . . . . . 3 . . . . . . . 2 Shutdowns 1 | . . . . . . . . . . . . . . . 1 Interference 4 | . . . . . . . 3 . . . . . . . 1 Siege Activations . | . . . . . . . . . . . . . . . . Robots Corrupted 1 | . 1 . . . . . . . . . . . . . . Combat Hostiles . | . . . . . . . . . . . . . . . . Parts Fried 1 | . 1 . . . . . . . . . . . . . . Impact Corruptions 2 | . . . . . . . . . . . 1 . 1 . . Robots Melted 1 | . . . . . . . . . . . . . . . 1 Combat Hostiles 1 | . . . . . . . . . . . . . . . 1 Parts Melted 20 | . . . . . . . 2 . . . 10 2 . 1 5 Heat Transferred 12359 | . 150 175 511 . 594 909 1558 . . 223 4040 1609 462 1407 721 Parts Sabotaged 2 | . . . . . . . . . . . . . . . 2 Parts Stolen 8 | . . . . . . . . . . . . . . 8 . Parts Stripped . | . . . . . . . . . . . . . . . . Power Chain Reactions 6 | . 2 . . . . . 3 . . . . . . 1 . Missiles Intercepted . | . . . . . . . . . . . . . . . . Alert | -11 -10 -10 -9 -9 -9 -8 -8 -7 -7 -7 -6 -5 -5 -5 -5 ------- Run | Scr Mat Min Mat Min Exi Min Mat Fac Was Fac Fac Fac Upp Upp War Peak Influence 462 | . 201 6 192 . . 80 410 9 23 321 462 288 . . . Average Influence 90 | . 85 . 69 . . 50 143 9 1 107 139 158 . . . Maximum Alert Level 2 | . 1 . . . . . 2 . . 1 2 1 . . . Low Security (%) 84 | 100 84 100 100 100 . 100 68 100 100 82 78 63 . . . Level 1 12 | . 15 . . . . . 23 . . 17 15 36 . . . Level 2 2 | . . . . . . . 7 . . . 6 . . . . Level 3 . | . . . . . . . . . . . . . . . . Level 4 . | . . . . . . . . . . . . . . . . Level 5 . | . . . . . . . . . . . . . . . . High Security . | . . . . . . . . . . . . . . . . Max Security . | . . . . . . . . . . . . . . . . Squads Dispatched 21 | . . . . . . . 2 . . 5 11 2 . 1 . Investigation 3 | . . . . . . . . . . 2 . 1 . . . Extermination 4 | . . . . . . . . . . 2 2 . . . . Reinforcement 4 | . . . . . . . 2 . . 1 . 1 . . . Assault 1 | . . . . . . . . . . . . . . 1 . Garrison 9 | . . . . . . . . . . . 9 . . . . Intercept . | . . . . . . . . . . . . . . . . Construction Impeded 1 | . . . . . . . 1 . . . . . . . . Haulers Reinforced . | . . . . . . . . . . . . . . . . Stealth | -11 -10 -10 -9 -9 -9 -8 -8 -7 -7 -7 -6 -5 -5 -5 -5 --------- Run | Scr Mat Min Mat Min Exi Min Mat Fac Was Fac Fac Fac Upp Upp War Distress Signals 7 | . 2 . . . . . 1 . . . 2 . . . 2 Communications Jammed . | . . . . . . . . . . . . . . . . Distress Signals . | . . . . . . . . . . . . . . . . Times Spotted 266 | . 11 9 9 . 8 5 25 . 6 15 32 8 5 39 94 Peak Tracking Total 35 | . 3 9 3 . 9 3 3 . 6 5 3 3 3 7 35 Tactical Retreats 16 | . 1 2 . . . . 2 . . . 2 1 1 1 6 Traps | -11 -10 -10 -9 -9 -9 -8 -8 -7 -7 -7 -6 -5 -5 -5 -5 ------- Run | Scr Mat Min Mat Min Exi Min Mat Fac Was Fac Fac Fac Upp Upp War Traps Triggered 8 | . 1 . . . . . 5 1 . 1 . . . . . Indirectly . | . . . . . . . . . . . . . . . . Trap Hack Attempts . | . . . . . . . . . . . . . . . . Triggered . | . . . . . . . . . . . . . . . . Disarmed 1 | . . . . . . . . . . . 1 . . . . Reprogrammed . | . . . . . . . . . . . . . . . . Reused . | . . . . . . . . . . . . . . . . Traps Extracted . | . . . . . . . . . . . . . . . . Installed . | . . . . . . . . . . . . . . . . Triggered 39 | . . . . . . . . . . . . . 1 . 38 Machines | -11 -10 -10 -9 -9 -9 -8 -8 -7 -7 -7 -6 -5 -5 -5 -5 ---------- Run | Scr Mat Min Mat Min Exi Min Mat Fac Was Fac Fac Fac Upp Upp War Machines Disabled 26 | . . . . . 1 . 3 . . . 21 1 . . . Max in Single Turn 9 | . . . . . 1 . 2 . . . 9 1 . . . Machines Sabotaged . | . . . . . . . . . . . . . . . . Garrisons Compromised . | . . . . . . . . . . . . . . . . Overloaded Fab Kills . | . . . . . . . . . . . . . . . . Fab Network Shutdowns . | . . . . . . . . . . . . . . . . Hacking | -11 -10 -10 -9 -9 -9 -8 -8 -7 -7 -7 -6 -5 -5 -5 -5 --------- Run | Scr Mat Min Mat Min Exi Min Mat Fac Was Fac Fac Fac Upp Upp War Machines Accessed 35 | . 3 1 2 . 2 . 4 . . 4 6 4 2 . 7 Terminals 21 | . 2 1 1 . . . 4 . . 4 5 4 . . . Fabricators . | . . . . . . . . . . . . . . . . Repair Stations 1 | . . . 1 . . . . . . . . . . . . Recycling Units 1 | . 1 . . . . . . . . . . . . . . Scanalyzers . | . . . . . . . . . . . . . . . . Garrison Access 1 | . . . . . . . . . . . 1 . . . . Total Hacks 91 | . 7 2 5 . 3 . 14 . . 12 12 13 5 . 18 Successful 61 | . 6 1 4 . 3 . 7 . . 7 3 7 5 . 18 Failed 30 | . 1 1 1 . . . 7 . . 5 9 6 . . . Catastrophic 3 | . . . . . . . . . . . 2 1 . . . Database Lockouts . | . . . . . . . . . . . . . . . . Manual 27 | . 5 2 3 . 1 . 6 . . 4 3 . . . 3 Terminals 60 | . 5 2 3 . . . 14 . . 12 11 13 . . . Fabricators . | . . . . . . . . . . . . . . . . Repair Stations 2 | . . . 2 . . . . . . . . . . . . Recycling Units 2 | . 2 . . . . . . . . . . . . . . Scanalyzers . | . . . . . . . . . . . . . . . . Garrison Access 1 | . . . . . . . . . . . 1 . . . . Terminal Hacks 55 | . 2 1 2 . 3 . 7 . . 7 3 7 5 . 18 Record 19 | . . . . . 2 . . . . 1 . . 4 . 12 Part Schematic 1 | . . . . . . . . . . 1 . . . . . Robot Analysis 2 | . . . . . . . . . . 1 1 . . . . Prototype ID Bank 5 | . . . . . . . . . . . . . . . 5 Open Door 2 | . . . . . . . . . . . . . 1 . 1 Level Access Points 2 | . . . . . . . 1 . . 1 . . . . . Branch Access Points 6 | . 1 1 1 . . . 2 . . . . 1 . . . Emergency Access Points 1 | . . . . . . . . . . . . 1 . . . Alert Level 1 | . . . . . . . . . . . . 1 . . . Unreport Threat 2 | . . . . . . . 2 . . . . . . . . Locate Traps 6 | . 1 . . . . . 2 . . 1 1 1 . . . Disarm Traps 1 | . . . . . . . . . . . 1 . . . . Dispatch Records 1 | . . . . . . . . . . . . 1 . . . Maintenance Status 2 | . . . 1 . . . . . . . . 1 . . . Hauler Manifests 2 | . . . . . . . . . . 1 . 1 . . . Registered Components 1 | . . . . . . . . . . 1 . . . . . EX-Prototype ID Bank 1 | . . . . . 1 . . . . . . . . . . Fabricator Hacks . | . . . . . . . . . . . . . . . . Repair Station Hacks 2 | . . . 2 . . . . . . . . . . . . Scan Component 1 | . . . 1 . . . . . . . . . . . . Repair 1 | . . . 1 . . . . . . . . . . . . Recycling Unit Hacks 2 | . 2 . . . . . . . . . . . . . . Process 1 | . 1 . . . . . . . . . . . . . . Report Inventory 1 | . 1 . . . . . . . . . . . . . . Scanalyzer . | . . . . . . . . . . . . . . . . Garrison Access Hacks . | . . . . . . . . . . . . . . . . Unauthorized Hacks 5 | . 5 . . . . . . . . . . . . . . Terminals 2 | . 2 . . . . . . . . . . . . . . Assimilate 1 | . 1 . . . . . . . . . . . . . . Botnet 1 | . 1 . . . . . . . . . . . . . . Fabricators . | . . . . . . . . . . . . . . . . Repair Stations . | . . . . . . . . . . . . . . . . Recycling Units . | . . . . . . . . . . . . . . . . Scanalyzers . | . . . . . . . . . . . . . . . . Garrison Access . | . . . . . . . . . . . . . . . . Data Cores Recovered 2 | . . . 1 . . . . . . . . 1 . . . Used 1 | . . . 1 . . . . . . . . . . . . Hacking Detections 22 | . 2 1 1 . . . 4 . . 4 6 4 . . . Full Trace Events 2 | . . . . . . . . . . 1 . 1 . . . Feedback Events . | . . . . . . . . . . . . . . . . Feedback Blocked . | . . . . . . . . . . . . . . . . Robot Schematics Acquired . | . . . . . . . . . . . . . . . . Robots Built . | . . . . . . . . . . . . . . . . Matter . | . . . . . . . . . . . . . . . . Time . | . . . . . . . . . . . . . . . . Total Robot Build Rating . | . . . . . . . . . . . . . . . . Part Schematics Acquired 1 | . . . . . . . . . . 1 . . . . . Parts Built . | . . . . . . . . . . . . . . . . Matter . | . . . . . . . . . . . . . . . . Time . | . . . . . . . . . . . . . . . . Total Part Build Rating . | . . . . . . . . . . . . . . . . Parts Repaired 1 | . . . 1 . . . . . . . . . . . . Time 26 | . . . 26 . . . . . . . . . . . . Parts Recycled . | . . . . . . . . . . . . . . . . Recycled Matter 126 | . 126 . . . . . . . . . . . . . . Retrieved Matter . | . . . . . . . . . . . . . . . . Retrieved Components . | . . . . . . . . . . . . . . . . Parts Scanalyzed . | . . . . . . . . . . . . . . . . Part Schematics Acquired . | . . . . . . . . . . . . . . . . Parts Damaged . | . . . . . . . . . . . . . . . . Bothacking | -11 -10 -10 -9 -9 -9 -8 -8 -7 -7 -7 -6 -5 -5 -5 -5 ------------ Run | Scr Mat Min Mat Min Exi Min Mat Fac Was Fac Fac Fac Upp Upp War Used RIF Installer . | . . . . . . . . . . . . . . . . Robots Hacked . | . . . . . . . . . . . . . . . . Non-combat . | . . . . . . . . . . . . . . . . Combat . | . . . . . . . . . . . . . . . . Robot Hacks Applied . | . . . . . . . . . . . . . . . . Relay Couplers Released . | . . . . . . . . . . . . . . . . Robots Rewired 5 | . . . . . . . . . . . . . . . 5 Allies Hacked . | . . . . . . . . . . . . . . . . Hacks Repelled . | . . . . . . . . . . . . . . . . Allies | -11 -10 -10 -9 -9 -9 -8 -8 -7 -7 -7 -6 -5 -5 -5 -5 -------- Run | Scr Mat Min Mat Min Exi Min Mat Fac Was Fac Fac Fac Upp Upp War Total Allies 24 | . . 1 . . . . . . 18 . . . . . 5 Largest Group 18 | . . 1 . . . . . . 18 10 6 . . . 5 Highest-Rated Group 456 | . . 31 . . . . . . 456 285 164 . . . 256 Highest-Rated Ally 60 | . . 31 . . . . . . 35 33 31 . . . 60 Total Orders . | . . . . . . . . . . . . . . . . Ally Attacks 362 | . . 3 . . . . . . 205 88 19 . . . 47 Total Damage 8460 | . . 40 . . . . . . 5088 1193 372 . . . 1767 Kills 38 | . . 1 . . . . . . 10 15 3 . . . 9 Allies Corrupted 1 | . . . . . . . . . . . 1 . . . . Allies Melted 1 | . . . . . . . . . . . . . . . 1 Intel | -11 -10 -10 -9 -9 -9 -8 -8 -7 -7 -7 -6 -5 -5 -5 -5 ------- Run | Scr Mat Min Mat Min Exi Min Mat Fac Was Fac Fac Fac Upp Upp War Robot Analysis Total 2 | . . . . . . . . . . 1 1 . . . . Derelict Logs Recovered 2 | . . . . 1 . . . . . . . . . 1 . Drone Launches . | . . . . . . . . . . . . . . . . Drone Recoveries . | . . . . . . . . . . . . . . . . Exploration | -11 -10 -10 -9 -9 -9 -8 -8 -7 -7 -7 -6 -5 -5 -5 -5 ------------- Run | Scr Mat Min Mat Min Exi Min Mat Fac Was Fac Fac Fac Upp Upp War Turns Passed 12265 | 117 468 430 409 229 1247 442 940 40 836 800 1697 417 544 1229 2420 Spaces Moved 6235 | 79 244 161 188 137 747 225 431 23 621 402 844 194 315 606 1018 Core 348 | 25 . . . . . 1 7 . 289 . . . . . 26 Treads 5887 | 54 244 161 188 137 747 224 424 23 332 402 844 194 315 606 992 Legs . | . . . . . . . . . . . . . . . . Wheels . | . . . . . . . . . . . . . . . . Hover . | . . . . . . . . . . . . . . . . Flight . | . . . . . . . . . . . . . . . . Fastest Speed 50 | 50 160 160 160 160 160 160 160 160 50 180 180 160 160 160 50 Average Speed 161 | 128 160 160 160 160 160 176 174 164 125 180 180 167 160 160 157 Slowest Speed 750 | 160 160 160 160 160 160 600 750 180 550 200 180 180 160 200 300 Overloaded Moves . | . . . . . . . . . . . . . . . . Propulsion Burnouts . | . . . . . . . . . . . . . . . . Robots Hopped . | . . . . . . . . . . . . . . . . Cave-ins Triggered . | . . . . . . . . . . . . . . . . Exploration Rate (%) 41 | 7 44 43 19 40 93 48 33 1 97 12 22 6 41 71 85 Regions Visited 15 Branch Regions 7 Pre-discovered Areas 3 | . . . . 1 . . . . . . . . . . 2 Known Exits Taken 13 | 1 1 1 1 1 1 1 1 . . 1 1 1 1 1 . Unknown Exits Taken . | . . . . . . . . . . . . . . . . Scrap Searched 3 | . . . . . . . . . . . . . 1 2 . Spaces Dug 1 | . . . . . . . . . . 1 . . . . . Terrain Destroyed 160 | . 10 . . . . . 43 . . 1 86 4 . 15 1 Melee . | . . . . . . . . . . . . . . . . Projectile 20 | . . . . . . . . . . 1 3 4 . 11 1 AOE 140 | . 10 . . . . . 43 . . . 83 . . 4 . Actions | -11 -10 -10 -9 -9 -9 -8 -8 -7 -7 -7 -6 -5 -5 -5 -5 --------- Run | Scr Mat Min Mat Min Exi Min Mat Fac Was Fac Fac Fac Upp Upp War Total 7823 | 92 285 315 262 147 770 254 544 26 673 455 912 249 340 701 1798 Wait 1096 | . 17 143 33 11 . 6 47 . 34 15 14 37 10 11 718 Move 6221 | 78 243 160 187 136 746 224 430 23 620 401 843 193 314 605 1018 Hop . | . . . . . . . . . . . . . . . . Pick Up 56 | 5 4 . 6 . 3 . 11 1 1 10 2 . 1 6 6 Fast Attach 71 | 6 1 . 5 . . 4 14 1 12 5 4 3 1 7 8 Attach 33 | 2 . 1 2 . 1 5 2 1 2 2 1 1 1 9 3 Detach 10 | 1 . . . . . . . . . 2 1 1 1 1 3 Swap 17 | . . . 3 . 2 . 3 . . 4 1 . 1 . 3 Drop 42 | . . . 8 . 4 . 4 . 4 5 4 2 2 2 7 Fire 241 | . 20 10 18 . 14 14 29 . . 9 39 12 4 59 13 Melee . | . . . . . . . . . . . . . . . . Ram . | . . . . . . . . . . . . . . . . Kick . | . . . . . . . . . . . . . . . . Crush 17 | . . 1 . . . 1 3 . . . 3 . 5 1 3 Escape Stasis 2 | . . . . . . . . . . 2 . . . . . Rewire 17 | . . . . . . . 1 . . . . . . . 16 Trap . | . . . . . . . . . . . . . . . . Miscellaneous . | . . . . . . . . . . . . . . . . Route ------- -11/Scrapyard -10/Materials (discovered 3 exits: *Mat / *Min x2) -10/Mines -9/Materials -9/Mines -9/Exiles (discovered 2 exits: *Min x2) -8/Mines -8/Materials (discovered 3 exits: *Fac x3) -7/Factory -7/Waste -7/Factory (discovered 4 exits: *Fac x4) -6/Factory -5/Factory (discovered 3 exits: *Fac / *Upp x2) -5/Upper Caves -5/Upper Caves (discovered 2 exits: Fac / *War) -5/Warlord (discovered 1 exit: *Pro) History --------- Turn | Location | Event 7 | -11/Scrapyard | Identified exit to Materials 7 | -11/Scrapyard | Discovered exit to Materials (range 15) 118 | -11/Scrapyard | Entered Materials 118 | -10/Materials | Evolved 1 slot: Propulsion x1 318 | -10/Materials | Build established: Hacker-Mutant 405 | -10/Materials | Identified exit to Mines 407 | -10/Materials | Identified exit to Materials 407 | -10/Materials | Discovered exit to Materials (range 16) 586 | -10/Materials | Entered Mines 587 | -10/Mines | Assembled infested the area 589 | -10/Mines | Received a Mining Laser from a helpful Derelict 593 | -10/Mines | Assisted by a Guerilla fighting off Assembled 998 | -10/Mines | Discovered exit to Materials (range 9) 1016 | -10/Mines | Entered Materials 1016 | -9/Materials | Evolved 2 slots: Utility x1, Weapon x1 1066 | -9/Materials | Repaired Lgt. Treads 1140 | -9/Materials | Identified exit to Mines 1425 | -9/Materials | Entered Mines 1570 | -9/Mines | Build established: Scavenger-Tank 1646 | -9/Mines | Deemed a non-threat by the Exiles lab entrance 1648 | -9/Mines | Identified exit to Exiles 1648 | -9/Mines | Discovered exit to Exiles (range 5) 1654 | -9/Mines | Entered Exiles 1694 | -9/Exiles | Met 8R-AWN 1722 | -9/Exiles | Met EX-HEX 1779 | -9/Exiles | Met EX-BIN 1798 | -9/Exiles | Aligned with FarCom system 1800 | -9/Exiles | Given EX-Vault access code 1854 | -9/Exiles | Opened EX-Vault 1867 | -9/Exiles | Found AWS/Thermal 1879 | -9/Exiles | Found Gui. Plasma Cannon 1955 | -9/Exiles | Warned to stay clear of 0b10 Research branches 2005 | -9/Exiles | Met EX-DEC 2174 | -9/Exiles | Visited The Gauntlet 2518 | -9/Exiles | Identified exit to Mines 2518 | -9/Exiles | Discovered exit to Mines (range 10) 2693 | -9/Exiles | Attacked by the Exiles 2883 | -9/Exiles | Discovered exit to Mines (range 14) 2901 | -9/Exiles | Stole two prototypes: AWS/Thermal, Gui. Plasma Cannon 2901 | -9/Exiles | Entered Mines 2951 | -8/Mines | 1C-UTU came to Exiles' defense 2974 | -8/Mines | Destroyed 1C-UTU 3024 | -8/Mines | Lost 6 parts (2n2u2w) 3266 | -8/Mines | Build established: Scavenger-Mutant 3325 | -8/Mines | Identified exit to Materials 3325 | -8/Mines | Discovered exit to Materials (range 9) 3343 | -8/Mines | Entered Materials 3343 | -8/Materials | Evolved 2 slots: Power x1, Weapon x1 3688 | -8/Materials | Build established: Scavenger-Tank 3963 | -8/Materials | Identified exit to Factory 4283 | -8/Materials | Entered Factory 4283 | -7/Factory | Evolved 2 slots: Utility x2 4323 | -7/Factory | Sucked down chute 4323 | -7/Factory | Entered Waste 4370 | -7/Waste | Spotted C-40 Crusher 4376 | -7/Waste | Spotted C-40 Crusher 4408 | -7/Waste | Spotted C-40 Crusher 4418 | -7/Waste | Crushed by Compactor (1 part destroyed, 1 dropped) 4431 | -7/Waste | Crushed by Compactor (1 part destroyed, 1 dropped) 4435 | -7/Waste | Spotted C-40 Crusher 4436 | -7/Waste | Crushed by Compactor (1 part destroyed, 1 dropped) 4439 | -7/Waste | Spotted C-40 Crusher 4445 | -7/Waste | Crushed by Compactor (1 part destroyed, 2 dropped) 4453 | -7/Waste | Crushed by Compactor (1 part destroyed, 2 dropped) 4456 | -7/Waste | Crushed by Compactor (1 part destroyed, 1 dropped) 4487 | -7/Waste | Lost 6 parts (1n3u2w) 4489 | -7/Waste | Spotted C-40 Crusher 4524 | -7/Waste | Identified exit to Factory 4524 | -7/Waste | Discovered exit to Factory (range 15) 4586 | -7/Waste | Warlord forces began an assault 4590 | -7/Waste | Found Hvy. Reactive Plating 4607 | -7/Waste | Allies destroyed C-40 Crusher 4617 | -7/Waste | Allies destroyed C-40 Crusher 4625 | -7/Waste | Allies destroyed C-40 Crusher 4627 | -7/Waste | Allies destroyed C-40 Crusher 5000 | -7/Waste | Build established: Hacker-Tank 5159 | -7/Waste | Entered Factory 5159 | -7/Factory | Accompanied by 10 allies 5881 | -7/Factory | Identified exit to Factory 5959 | -7/Factory | Entered another Factory area 5959 | -6/Factory | Accompanied by 6 allies 5959 | -6/Factory | Evolved 2 slots: Utility x1, Weapon x1 6054 | -6/Factory | Build established: Scavenger-Tank 6529 | -6/Factory | Garrison activated, responded to threat 7148 | -6/Factory | Garrison activated, responded to threat 7150 | -6/Factory | P-60 Hacker assimilated allied GT-8XE(m) 7254 | -6/Factory | Garrison activated, responded to threat 7631 | -6/Factory | Identified exit to Factory 7631 | -6/Factory | Discovered exit to Factory (range 5) 7656 | -6/Factory | Entered another Factory area 7656 | -5/Factory | Evolved 2 slots: Propulsion x1, Weapon x1 7717 | -5/Factory | Identified exit to Upper Caves 7936 | -5/Factory | Build established: Scavenger-Executioner 7948 | -5/Factory | Identified exit to Factory 7948 | -5/Factory | Discovered exit to Factory (range 15) 8073 | -5/Factory | Entered Upper Caves 8135 | -5/Upper Caves | Encountered a Warlord checkpoint 8331 | -5/Upper Caves | Attracted the attention of an 0b10 checkpoint 8532 | -5/Upper Caves | Identified exit to Upper Caves 8532 | -5/Upper Caves | Discovered exit to Upper Caves (range 13) 8542 | -5/Upper Caves | Learned location of 1 exit from Research 8542 | -5/Upper Caves | Learned Research trap positions 8542 | -5/Upper Caves | Learned Extension security intel 8542 | -5/Upper Caves | Learned Factory terminal intel 8617 | -5/Upper Caves | Entered another Upper Caves area 8768 | -5/Upper Caves | Attracted the attention of an 0b10 outpost 8857 | -5/Upper Caves | Destroyed 10 combat bots 9220 | -5/Upper Caves | Spotted FW-GPL(f) 9221 | -5/Upper Caves | Encountered a Master Thief 9223 | -5/Upper Caves | Lgt. Antimatter Reactor stolen by Master Thief 9399 | -5/Upper Caves | Spotted J2-6UF(f) 9400 | -5/Upper Caves | Encountered a Master Thief 9400 | -5/Upper Caves | Spotted V9-K3U(f) 9401 | -5/Upper Caves | Encountered a Master Thief 9401 | -5/Upper Caves | Hvy. Treads stolen by Master Thief 9402 | -5/Upper Caves | Adv. Cooling System stolen by Master Thief 9407 | -5/Upper Caves | Destroyed V9-K3U(f) 9419 | -5/Upper Caves | Spotted V3-23Z(f) 9419 | -5/Upper Caves | Spotted VA-E04(f) 9420 | -5/Upper Caves | Encountered a Master Thief 9420 | -5/Upper Caves | Encountered a Master Thief 9422 | -5/Upper Caves | Arc Thrower stolen by Master Thief 9436 | -5/Upper Caves | Proton Cannon stolen by Master Thief 9437 | -5/Upper Caves | Destroyed V3-23Z(f) 9626 | -5/Upper Caves | Spotted 3O-A1P(f) 9627 | -5/Upper Caves | Encountered a Master Thief 9630 | -5/Upper Caves | Adv. Cooling System stolen by Master Thief 9818 | -5/Upper Caves | Spotted 3C-9DL(f) 9819 | -5/Upper Caves | Encountered a Master Thief 9820 | -5/Upper Caves | Imp. Deuterium Engine stolen by Master Thief 9820 | -5/Upper Caves | Destroyed 3C-9DL(f) 9840 | -5/Upper Caves | Identified exit to Warlord 9840 | -5/Upper Caves | Discovered exit to Warlord (range 6) 9842 | -5/Upper Caves | Spotted JB-BCJ(f) 9843 | -5/Upper Caves | Encountered a Master Thief 9845 | -5/Upper Caves | Proton Cannon stolen by Master Thief 9846 | -5/Upper Caves | Entered Warlord 9915 | -5/Warlord | System corruption cleaned by Quarantine Array 10248 | -5/Warlord | Identified exit to Proximity Caves 10248 | -5/Warlord | Discovered exit to Proximity Caves (range 14) 10546 | -5/Warlord | Warlord's base attacked by MAIN.C 10896 | -5/Warlord | Warlord forces counterattacked 11043 | -5/Warlord | Learned Factory scanalyzer intel 11043 | -5/Warlord | Learned Armory garrison access intel 11045 | -5/Warlord | Learned 4 Armory zone layouts 11045 | -5/Warlord | Learned 4 Research zone layouts 11046 | -5/Warlord | Learned location of Quarantine (-2) 11046 | -5/Warlord | Learned Quarantine trap positions 11401 | -5/Warlord | Met Warlord 11505 | -5/Warlord | Spotted Executioner 11565 | -5/Warlord | Spotted Executioner 11568 | -5/Warlord | Allies destroyed Executioner 11581 | -5/Warlord | Found Prototype Device 11581 | -5/Warlord | Identified Adv. Kinecellerator 11584 | -5/Warlord | Spotted Executioner 11963 | -5/Warlord | Spotted Striker 12071 | -5/Warlord | Spotted Striker 12104 | -5/Warlord | Spotted Striker 12180 | -5/Warlord | Spotted Striker 12237 | -5/Warlord | Spotted Executioner 12245 | -5/Warlord | Spotted Executioner 12248 | -5/Warlord | Spotted Striker 12254 | -5/Warlord | Core integrity fell below 50% 12259 | -5/Warlord | Spotted Striker 12261 | -5/Warlord | Core integrity fell below 20% 12266 | -5/Warlord | Destroyed by S-27 Virus with Autogun Last Messages --------------- 12246_ Penetrated by Slug. 12246_ Slug penetrates Wall. 12247_ Imp. Heat Sink destroyed. 12247_ Antimatter Reactor blown off. 12247_ E-15 Imp destroyed. 12248_ Penetrated by Slug. 12249_ Slug penetrates Wall. 12249_ Hvy. Treads destroyed. 12251_ Knocked back. 12252_ S-27 Virus knocked back. 12252_ S-27 Virus destroyed. 12253_ Dropped Adv. Heat Sink. 12253_ Dropped Lrg. Storage Unit. 12255_ Penetrated by Slug. 12256_ Slug penetrates Wall. 12259_ Slug penetrates Earth. 12260_ Penetrated by Slug. 12261_ S-27 Virus destroyed. 12261_ Knocked back. 12261_ S-27 Virus destroyed. Map ----- +----------------------------------------------------+ | | | | | | | | | | | | | | | | | | | | | | | | | | | ?????????????????????????????????????????????????? | | ?????????????????????????????????????????????????? | | ?????????????????????????????????????????????????? | | ?????????????????????????????????????????????????? | | ?????????????????????????????????????????????????? | | ??????????????????????####???????????????????????? | | ??????????????????????+ #??????????????????????? | | ??????????????????????#[ p/??????????????????????? | | ??????????????????????#%= #??????????????????????? | | ??????????????????????#* #??????????????????????? | | ?????????????????????## ##?????????????????????? | | ?????????????????????# #?????????????????????? | | ?????????????????????# @ #?????????????????????? | | ?????????????????????# e #?????????????????????# | | ?????????????????????# #?????????????????????# | | ?????????????????????# #?????????????????????# | | ?????????????########## ##?????????????????????# | | ?????????????# # K#??????????????????????# | | ?????????????# + K#?????? #??????????????# | | ?????????????# # #???? #??????????????? | | ?????????????# # #?? #??????????????? | | #####????????# ]] ; # !!! #??????????????? | | X#????????# ] / ; / #??????????????? | | "????????# // ; # /// #??????????????? | | "????????# ; #?? #??????????????? | | "????????# # s ###+#####??????????????? | | #????????##########s #?????????????????? | | ################## # #??????""?????????? | | """"""""## + [ #?????#""#????????? | | "## # =% #?????#""#????????? | | ! "## # [%* # #######""#####????? | | = "## # = # # "" "###### | | !* ""## # # % #= "" """"""" | | "# # # ![="" """"""" | | "## # [%[% | | = "## = !%=%% ^ | | """""""""""## #!!= % * %[ | +----------------------------------------------------+ Best States ------------- Heat Dissipation 112 Energy Generation 41 Energy Capacity 515 Matter Stores 499 Matter Capacity 500 Sight Range 16 Terrain Scan Range 14 Terrain Scan Density 10 Armor Coverage 1275 Resistance: KI 75 Resistance: TH 35 Resistance: EX 35 Resistance: EM 35 Resistance: I 35 Resistance: S 35 Resistance: P 35 Utility Shielding 33 Evasion (%) 50 Recoil Reduction 4 Kinecelleration 50 Offensive Hacking 20 Item Schematics ----------------- Focal Shield | -7/Factory | Hacked Robot Schematics ------------------ None Fabricated ------------ Nothing Alien Tech Used ----------------- None Achievements -------------- A Powerful Ally? True Hacker Challenges ------------ None Game ------ Seed SpikedChipFlamer Manual? 0 Play Time 01:39:15 Cumulative 93.1 hours Start 2020.02.03 @ 22:33:08 End 2020.02.09 @ 08:02:15 Sessions 3 Manual Loads 0 Difficulty Explorer Special Mode None Game No. 71 Rogue 58 Adventurer 0 Explorer 13 Win Type - Total 1 Types 1/0/0/0/0/0/0 Lore% 46 Gallery% 51 Achievement% 43 Wizard Run 0 Options --------- ASCII 1 Keyboard 1 Movement Vi Keybinds 0 Fullscreen 1 Font 18/CogWide Map View 76x50 Tactical HUD 1 Map Filters NONE Filters LOW_CONTRAST(47,30,31)|SHIFT_HUE(1) Steam 1 RUN: 53592cab-5dd3-487c-bc75-177f7cecb662